Cogmind - Beta 10.1 @@@ ROGUE MODE // 2020.09.28 @ 20:32:09 Player: Cracklepappy Result: Self-destructed Performance ------------- Evolutions (2) 1000 Regions Visited (5) 1000 Robots Destroyed (92) 460 Value Destroyed (2386) 2386 Prototype IDs (29) 580 Alien Tech Used (0) 0 Bonus (374) 374 TOTAL SCORE: 5800 Bonus ------- High Alert Combat Kills 14 Follower Combat Kills 60 Aligned with FarCom 300 Cogmind --------- Core Integrity 112/550 Matter 211/300 Energy 100/100 System Corruption 0% Temperature Cool (0) Movement Walking (510) Ox13 Location -8/Materials Parts ------- > --- POWER (1) -------- (None) > --- PROPULSION (2) --- Aluminum Leg > --- UTILITY (6) ------ High-capacity Storage Unit High-capacity Storage Unit High-capacity Storage Unit High-capacity Storage Unit > --- WEAPON (2) ------- Assault Rifle Shotgun > --- INVENTORY (36) --- Nuclear Core Fission Core Fission Core Light Treads Aluminum Leg Aluminum Leg Carbon-fiber Leg Airjet Airjet Gravmag System Gravmag System Combat Airjet Medium Storage Unit Large Storage Unit Large Storage Unit High-capacity Storage Unit Medium Battery (200) High-capacity Matter Pod (200) Long-range Sensor Array Advanced Signal Interpreter Advanced Signal Interpreter Transport Network Coupler System Shield System Shield High-powered Tractor Beam EM Shotgun Improved EM Shotgun Improved EM Shotgun Improved EM Shotgun Improved EM Shotgun Enhanced Autogun Bore Cannon Mini Grenade Launcher Mining Laser Peak State ------------ > --- POWER ------------ Light Nuclear Core > --- PROPULSION ------- Light Treads Aluminum Leg > --- UTILITY ---------- High-capacity Storage Unit High-capacity Storage Unit High-capacity Storage Unit High-capacity Storage Unit > --- WEAPON ----------- Assault Rifle Heavy Assault Rifle > --- INVENTORY -------- Nuclear Core Fission Core Fission Core Aluminum Leg Carbon-fiber Leg Airjet Airjet Gravmag System Gravmag System Combat Airjet Medium Storage Unit Large Storage Unit Large Storage Unit High-capacity Storage Unit Medium Battery High-capacity Matter Pod Long-range Sensor Array Advanced Signal Interpreter Advanced Signal Interpreter Transport Network Coupler System Shield System Shield High-powered Tractor Beam EM Shotgun Improved EM Shotgun Improved EM Shotgun Improved EM Shotgun Improved EM Shotgun Improved EM Shotgun Gauss Rifle Bore Cannon Mini Grenade Launcher Mining Laser [Rating: 21] Favorites ----------- Power Improved Ion Engine Engine Improved Ion Engine Power Core Light Nuclear Core Propulsion Light Treads Treads Light Treads Leg Aluminum Leg Wheel Wheel Utility High-capacity Storage Unit Storage High-capacity Storage Unit Protection Light Armor Plating Weapon Assault Rifle Energy Gun EM Shotgun Energy Cannon Guided Plasma Cannon Ballistic Gun Assault Rifle Ballistic Cannon Light Cannon Launcher Mini Grenade Launcher Special Weapon Mining Laser Build | -11 -10 -10 -10 -9 -8 ------- Run | Scr Mat Min Exi Min Mat Slots Evolved 4 | . . . . . 4 Power . | . . . . . . Propulsion . | . . . . . . Utility 4 | . . . . . 4 Weapon . | . . . . . . Parts Attached 63 | 9 10 9 3 5 27 Power 8 | 3 2 1 . 1 1 Engine 6 | 3 1 1 . 1 . Core 2 | . 1 . . . 1 Reactor . | . . . . . . Propulsion 17 | 2 3 2 1 1 8 Treads 12 | 1 3 2 1 1 4 Leg 4 | . . . . . 4 Wheel 1 | 1 . . . . . Hover . | . . . . . . Flight . | . . . . . . Utility 7 | 2 2 . . . 3 Device . | . . . . . . Storage 6 | 2 2 . . . 2 Processor . | . . . . . . Hackware . | . . . . . . Protection 1 | . . . . . 1 Artifact . | . . . . . . Weapon 31 | 2 3 6 2 3 15 Energy Gun 2 | . . . . . 2 Energy Cannon 1 | . . . 1 . . Ballistic Gun 19 | 2 1 4 . 2 10 Ballistic Cannon 1 | . 1 . . . . Launcher 7 | . 1 2 1 1 2 Special Weapon 1 | . . . . . 1 Impact Weapon . | . . . . . . Slashing Weapon . | . . . . . . Piercing Weapon . | . . . . . . Special Melee Weapon . | . . . . . . Unidentified Prototypes . | . . . . . . Parts Lost 25 | . 2 1 2 2 18 Power 4 | . 1 . . 1 2 Propulsion 13 | . 1 1 1 1 9 Utility 1 | . . . . . 1 Weapon 7 | . . . 1 . 6 Highest Loss Streak 6 | . 2 1 2 2 6 Average Slot Usage (%) 93 | . 99 100 99 99 73 Engine 11 | . 10 14 14 13 4 Treads 22 | . 13 27 27 28 11 Leg 1 | . . . . . 4 Wheel 1 | . 14 . . . . Storage 28 | . 28 28 28 28 31 Ballistic Gun 19 | . 18 21 26 15 16 Ballistic Cannon 1 | . 9 . . . . Launcher 4 | . . 6 . 12 . Naked Turns . | . . . . . . Heaviest Build 139 | 16 73 76 84 76 139 Greatest Support 40 | 10 20 40 40 40 40 Greatest Overweight (x) 44 | 1 7 7 3 1 44 Average Overweight (x) 1 | . 2 1 1 1 3 Largest Inventory Capacity 36 | 8 20 20 20 20 36 Average Capacity 21 | 7 10 20 20 20 31 Most Carried 36 | 8 20 20 20 18 36 Average Carried 19 | 5 9 19 18 17 30 Final Capacity 36 | 8 20 20 20 20 36 Final Carried 34 | 8 20 20 19 17 34 Class Distribution -------------------- 86% | Hauler-Mutant 11% | Mutant Dominant Class ---------------- Mutant | -10/Materials Hauler-Mutant | -10/Mines Hauler-Mutant | -10/Exiles Hauler-Mutant | -9/Mines Hauler-Mutant | -8/Materials Resources | -11 -10 -10 -10 -9 -8 ----------- Run | Scr Mat Min Exi Min Mat Matter Collected 2376 | 382 383 437 22 138 1014 Remotely . | . . . . . . Salvage Created 2787 | 186 770 110 29 25 1667 Parts 183 | 10 51 21 . 5 96 Haulers Intercepted 2 | . 1 . . . 1 Recyclers Shooed 3 | . . . . . 3 Parts Field Recycled . | . . . . . . Retrieved Matter . | . . . . . . Parts Self-Destructed . | . . . . . . Prevented . | . . . . . . Kills | -11 -10 -10 -10 -9 -8 ------- Run | Scr Mat Min Exi Min Mat Combat Hostiles Destroyed 75 | . 17 11 6 3 38 Guns 46 | . 7 5 . 1 33 Cannons 8 | . 7 . 1 . . AOE 21 | . 3 6 5 2 5 Classes Destroyed 12 | 2 5 . 1 1 3 Builder 1 | . . . . . 1 Tunneler 4 | 4 . . . . . Hauler 2 | . 1 . . . 1 Recycler 3 | 1 2 . . . . Operator 1 | . 1 . . . . Watcher 6 | . 3 . . . 3 Swarmer 26 | . 6 10 . 2 8 Grunt 35 | . 11 1 . . 23 Sentry 5 | . . . . . 5 Demolisher 1 | . . . . 1 . Hunter 2 | . . . . . 2 Assembled 6 | . . . 6 . . Best Kill Streak 6 | 3 5 3 4 2 6 Combat Bots Only 5 | . 3 3 4 2 5 Max Kills in Single Turn 2 | 1 2 2 1 2 2 Gunslinging 1 | . . 1 . . . Exploded 2 | . 2 2 1 2 1 Melee . | . . . . . . Uniques/NPCs Destroyed . | . . . . . . Combat | -11 -10 -10 -10 -9 -8 -------- Run | Scr Mat Min Exi Min Mat Damage Taken 4087 | . 462 238 444 193 2750 Core 633 | . 80 56 59 . 438 Absorbed by Shields . | . . . . . . Core Remaining (%) 61 | 100 . . . 22 . Volleys Fired 253 | 23 52 18 10 3 147 Largest 2 | 2 2 2 1 2 2 Hottest 120 | 40 55 50 120 43 100 Shots Fired 468 | 46 100 33 10 5 274 Gun 416 | 46 71 29 . 4 266 Cannon 28 | . 25 . 3 . . Launcher 22 | . 4 4 7 1 6 Special 2 | . . . . . 2 Kinetic 436 | 46 96 29 . 4 261 Thermal 5 | . . . 3 . 2 Explosive 22 | . 4 4 7 1 6 Electromagnetic 5 | . . . . . 5 Robot Hit Streak 18 | 8 9 9 4 4 18 Robot Miss Streak 4 | 3 3 3 3 3 4 Penetration Max 1 | . . . . . 1 Secondary Targets 2 | . . 1 . . 1 Max Gunslinging Chain 1 | . . 1 . . 1 Shots Hit Robots 309 | 27 70 19 3 4 186 Core Hits 179 | 9 39 18 12 5 96 Critical Hits 3 | . 1 . . . 2 Critical Kills 2 | . 1 . . . 1 Critical Parts Destroyed 1 | . . . . . 1 Melee Attacks . | . . . . . . Impact . | . . . . . . Slashing . | . . . . . . Piercing . | . . . . . . Sneak Attacks . | . . . . . . Combat Hostiles . | . . . . . . Follow-up Attacks . | . . . . . . Damage Inflicted 5854 | 287 1088 547 412 183 3337 Guns 3688 | 287 552 146 . 45 2658 Cannons 316 | . 245 . 71 . . Explosions 1802 | . 291 383 341 108 679 Melee . | . . . . . . Ramming 48 | . . 18 . 30 . Kinetic 3863 | 287 797 146 . 45 2588 Thermal 71 | . . . 71 . . Explosive 1802 | . 291 383 341 108 679 Electromagnetic 70 | . . . . . 70 Impact . | . . . . . . Slashing . | . . . . . . Piercing . | . . . . . . Highest Corruption . | . . . . . . Average Corruption . | . . . . . . Corruption Purged . | . . . . . . Overload Shots . | . . . . . . Overflow Damage 80 | . 35 16 29 . . Projectiles . | . . . . . . Explosions 80 | . 35 16 29 . . Melee . | . . . . . . Knockbacks 4 | . 4 . . . . Impact . | . . . . . . Kinetic 4 | . 4 . . . . Secondary . | . . . . . . Self-Inflicted Damage 217 | . 81 75 48 . 13 Shots 8 | . 2 2 3 . 1 Rammed 7 | . . 2 . 5 . Targets Rammed 7 | . . 2 . 5 . Kicked . | . . . . . . Crushed . | . . . . . . Highest Temperature 164 | . 35 20 164 . 12 Average Temperature 29 | . 12 9 96 . 4 Received Heat Transfer 1384 | . 195 33 40 . 1116 Siege Activations . | . . . . . . Robots Corrupted . | . . . . . . Combat Hostiles . | . . . . . . Parts Fried . | . . . . . . Impact Corruptions . | . . . . . . Robots Melted . | . . . . . . Combat Hostiles . | . . . . . . Parts Melted . | . . . . . . Heat Transferred 160 | . . . 160 . . Parts Sabotaged . | . . . . . . Parts Stolen . | . . . . . . Parts Stripped . | . . . . . . Power Chain Reactions . | . . . . . . Missiles Intercepted . | . . . . . . Alert | -11 -10 -10 -10 -9 -8 ------- Run | Scr Mat Min Exi Min Mat Peak Influence 505 | 25 505 327 . 70 406 Initial 138 | . 16 138 . . . Average 139 | 9 303 183 . 8 157 Maximum Alert Level 2 | . 2 1 . . 2 Low Security (%) 66 | 100 28 45 . 100 65 Level 1 28 | . 36 54 . . 33 Level 2 5 | . 34 . . . 1 Level 3 . | . . . . . . Level 4 . | . . . . . . Level 5 . | . . . . . . High Security . | . . . . . . Max Security . | . . . . . . Squads Dispatched 15 | . 5 . . . 10 Investigation 3 | . 2 . . . 1 Extermination . | . . . . . . Reinforcement 9 | . 3 . . . 6 Assault . | . . . . . . Garrison 3 | . . . . . 3 Intercept . | . . . . . . Construction Impeded 1 | . . . . . 1 Haulers Reinforced . | . . . . . . Stealth | -11 -10 -10 -10 -9 -8 --------- Run | Scr Mat Min Exi Min Mat Distress Signals 7 | . . . . 1 6 Communications Jammed . | . . . . . . Distress Signals . | . . . . . . Times Spotted 114 | . 26 18 7 5 58 Peak Tracking Total 9 | . 3 3 9 3 5 Tactical Retreats 6 | . . 1 . 1 4 Traps | -11 -10 -10 -10 -9 -8 ------- Run | Scr Mat Min Exi Min Mat Traps Triggered 3 | . 2 . . . 1 Indirectly . | . . . . . . Trap Hack Attempts . | . . . . . . Triggered . | . . . . . . Disarmed . | . . . . . . Reprogrammed . | . . . . . . Reused . | . . . . . . Traps Extracted . | . . . . . . Installed . | . . . . . . Triggered . | . . . . . . Machines | -11 -10 -10 -10 -9 -8 ---------- Run | Scr Mat Min Exi Min Mat Machines Disabled 6 | . . . 5 . 1 Max in Single Turn 2 | . . . 2 . 1 Machines Sabotaged . | . . . . . . Garrisons Compromised . | . . . . . . Overloaded Fab Kills . | . . . . . . Fab Network Shutdowns . | . . . . . . Hacking | -11 -10 -10 -10 -9 -8 --------- Run | Scr Mat Min Exi Min Mat Machines Accessed 13 | . 7 . 2 1 3 Terminals 8 | . 5 . . 1 2 Fabricators . | . . . . . . Repair Stations . | . . . . . . Recycling Units 2 | . 2 . . . . Scanalyzers 1 | . . . . . 1 Garrison Access . | . . . . . . Total Hacks 25 | . 12 . 2 2 9 Successful 18 | . 9 . 2 1 6 Failed 7 | . 3 . . 1 3 Catastrophic 2 | . 1 . . 1 . Database Lockouts . | . . . . . . Manual 10 | . 5 . 1 2 2 Terminals 17 | . 10 . . 2 5 Fabricators . | . . . . . . Repair Stations . | . . . . . . Recycling Units 2 | . 2 . . . . Scanalyzers 4 | . . . . . 4 Garrison Access . | . . . . . . Terminal Hacks 13 | . 7 . 2 1 3 Record 1 | . . . 1 . . Part Schematic 2 | . 2 . . . . Prototype ID Bank 3 | . 2 . . . 1 Branch Access Points 1 | . . . . . 1 Unreport Threat 2 | . . . . 1 1 Locate Traps 1 | . 1 . . . . Hauler Manifests 1 | . 1 . . . . Registered Components 1 | . 1 . . . . EX-Prototype ID Bank 1 | . . . 1 . . Fabricator Hacks . | . . . . . . Repair Station Hacks . | . . . . . . Recycling Unit Hacks . | . . . . . . Scanalyzer 3 | . . . . . 3 Insert Component 1 | . . . . . 1 Analyze 2 | . . . . . 2 Garrison Access Hacks . | . . . . . . Unauthorized Hacks 2 | . 2 . . . . Terminals . | . . . . . . Fabricators . | . . . . . . Repair Stations . | . . . . . . Recycling Units 2 | . 2 . . . . Tunnel 2 | . 2 . . . . Scanalyzers . | . . . . . . Garrison Access . | . . . . . . Data Cores Recovered . | . . . . . . Used . | . . . . . . Hacking Detections 9 | . 5 . . 1 3 Full Trace Events 1 | . . . . . 1 Feedback Events . | . . . . . . Feedback Blocked . | . . . . . . Robot Schematics Acquired . | . . . . . . Robots Built . | . . . . . . Matter . | . . . . . . Time . | . . . . . . Total Robot Build Rating . | . . . . . . Part Schematics Acquired 3 | . 2 . . . 1 Parts Built . | . . . . . . Matter . | . . . . . . Time . | . . . . . . Total Part Build Rating . | . . . . . . Parts Repaired . | . . . . . . Time . | . . . . . . Parts Recycled . | . . . . . . Recycled Matter . | . . . . . . Retrieved Matter . | . . . . . . Retrieved Components . | . . . . . . Parts Scanalyzed 1 | . . . . . 1 Part Schematics Acquired 1 | . . . . . 1 Parts Damaged 1 | . . . . . 1 Bothacking | -11 -10 -10 -10 -9 -8 ------------ Run | Scr Mat Min Exi Min Mat Used RIF Installer . | . . . . . . Robots Hacked . | . . . . . . Non-combat . | . . . . . . Combat . | . . . . . . Robot Hacks Applied . | . . . . . . Relay Couplers Released . | . . . . . . Robots Rewired . | . . . . . . Allies Hacked . | . . . . . . Hacks Repelled . | . . . . . . Allies | -11 -10 -10 -10 -9 -8 -------- Run | Scr Mat Min Exi Min Mat Total Allies 3 | . . 3 . . . Largest Group 3 | . . 3 . . . Highest-Rated Group 40 | . . 40 . . . Highest-Rated Ally 16 | . . 16 . . . Total Orders . | . . . . . . Ally Attacks 34 | . . 34 . . . Total Damage 362 | . . 362 . . . Kills 6 | . . 6 . . . Allies Corrupted . | . . . . . . Allies Melted . | . . . . . . Intel | -11 -10 -10 -10 -9 -8 ------- Run | Scr Mat Min Exi Min Mat Robot Analysis Total . | . . . . . . Derelict Logs Recovered 2 | . . 1 . 1 . Drone Launches . | . . . . . . Drone Recoveries . | . . . . . . Exploration | -11 -10 -10 -10 -9 -8 ------------- Run | Scr Mat Min Exi Min Mat Turns Passed 6702 | 160 826 1149 1453 1494 1620 Spaces Moved 3045 | 83 573 581 780 590 438 Core 2 | 1 . . . . 1 Treads 2319 | . 13 568 780 590 368 Legs 69 | . . . . . 69 Wheels 655 | 82 560 13 . . . Hover . | . . . . . . Flight . | . . . . . . Fastest Speed 50 | 50 90 150 180 180 180 Average Speed 171 | 86 102 179 181 180 235 Slowest Speed 2250 | 90 160 180 220 180 2250 Overloaded Moves . | . . . . . . Propulsion Burnouts . | . . . . . . Robots Hopped . | . . . . . . Cave-ins Triggered . | . . . . . . Exploration Rate (%) 66 | 5 94 98 71 96 37 Regions Visited 5 Branch Regions 3 Pre-discovered Areas 3 | . 2 . 1 . . Known Exits Taken . | . . . . . . Unknown Exits Taken 5 | 1 1 1 1 1 . Scrap Searched 3 | . . 1 . 2 . Spaces Dug 2 | . . . . . 2 Terrain Destroyed 175 | . 29 47 34 14 51 Melee . | . . . . . . Projectile 2 | . . . . . 2 AOE 173 | . 29 47 34 14 49 Terrain Rammed . | . . . . . . Walls Destroyed . | . . . . . . Machines Disabled . | . . . . . . Actions | -11 -10 -10 -10 -9 -8 --------- Run | Scr Mat Min Exi Min Mat Total 4091 | 126 723 671 814 1012 745 Wait 575 | . 49 30 . 409 87 Move 3040 | 82 572 580 779 589 438 Hop . | . . . . . . Pick Up 101 | 10 25 15 11 1 39 Fast Attach 14 | 6 4 1 . . 3 Attach 23 | 1 2 1 1 3 15 Detach . | . . . . . . Swap 26 | 2 4 7 2 2 9 Drop 52 | 2 15 17 11 . 7 Fire 253 | 23 52 18 10 3 147 Melee . | . . . . . . Ram . | . . . . . . Kick . | . . . . . . Crush 7 | . . 2 . 5 . Escape Stasis . | . . . . . . Rewire . | . . . . . . Trap . | . . . . . . Miscellaneous . | . . . . . . Route ------- -11/Scrapyard -10/Materials (discovered 5 exits: [*Mat x3] / [*Min x2]) -10/Mines (discovered 3 exits: [*Mat x2] / *Exi) -10/Exiles (discovered 2 exits: *Min x2) -9/Mines (discovered 2 exits: *Mat x2) -8/Materials (discovered 2 exits: Fac x2) History --------- Turn | Location | Event 13 | -11/Scrapyard | Discovered new exit (range 14) 161 | -11/Scrapyard | Entered Materials 232 | -10/Materials | Discovered new exit (range 14) 312 | -10/Materials | Build established: Mutant 411 | -10/Materials | Discovered new exit (range 11) 585 | -10/Materials | Discovered new exit (range 13) 707 | -10/Materials | Discovered new exit (range 13) 791 | -10/Materials | Discovered new exit (range 11) 987 | -10/Materials | Entered Mines 1095 | -10/Mines | Build established: Hauler-Mutant 1103 | -10/Mines | Learned 4 Materials zone layouts 1154 | -10/Mines | Assisted by bots powering up and referring to "LRC-V3" 1183 | -10/Mines | Discovered new exit (range 14) 1401 | -10/Mines | A weapon hastily lodged in a ceiling crevice suddenly fell to the ground 1528 | -10/Mines | Discovered new exit (range 7) 1572 | -10/Mines | Core integrity fell below 50% 1631 | -10/Mines | Deemed a non-threat by the Exiles lab entrance 1631 | -10/Mines | Discovered new exit (range 5) 1734 | -10/Mines | Joined a pair of Derelicts in attacking an 0b10 outpost 2136 | -10/Mines | Entered Exiles 2181 | -10/Exiles | Met 8R-AWN 2212 | -10/Exiles | Met EX-HEX 2307 | -10/Exiles | Met EX-DEC 2469 | -10/Exiles | Learned location of Zion (-7) 2538 | -10/Exiles | Discovered new exit (range 12) 2728 | -10/Exiles | Met EX-BIN 2972 | -10/Exiles | Aligned with FarCom system 2974 | -10/Exiles | Given EX-Vault access code 3019 | -10/Exiles | Opened EX-Vault 3030 | -10/Exiles | Found Gui. Plasma Cannon 3081 | -10/Exiles | Warned to stay clear of 0b10 Research branches 3225 | -10/Exiles | Discovered new exit (range 14) 3513 | -10/Exiles | Attacked by the Exiles 3589 | -10/Exiles | Entered Mines 3650 | -9/Mines | Learned 4 Materials zone layouts 3770 | -9/Mines | Assembled infested the area 4415 | -9/Mines | Found a hidden stash of uninstalled traps 4507 | -9/Mines | Discovered new exit (range 8) 4658 | -9/Mines | Discovered new exit (range 8) 5083 | -9/Mines | Entered Materials 5083 | -8/Materials | Evolved 4 slots: Utility x4 5084 | -8/Materials | Identified exit to Factory 5644 | -8/Materials | Garrison activated, responded to threat 5685 | -8/Materials | Lost 3 parts (1n1u1w) 5945 | -8/Materials | Garrison activated, responded to threat 6036 | -8/Materials | Lost 6 parts (1p3n2w) 6376 | -8/Materials | Core integrity fell below 50% 6500 | -8/Materials | Lost 3 parts (1n2w) 6616 | -8/Materials | Garrison activated, responded to threat 6703 | -8/Materials | Self-destructed Last Messages --------------- 06671_ Connecting with Scanalyzer... >>Insert(Cmb. Airjet) Scanning Cmb. Airjet... Ready to analyze. >>Scanalyze Scanning: Cmb. Airjet... Scan incomplete, additional scanning required. >>Scanalyze Scanning: Cmb. Airjet... Schematic downloaded. 06671_ ALERT: Suspicious activity at Scanalyzer M002. Dispatching Investigation squad. 06675_ Carbon-fiber Leg destroyed. 06682_ S-10 Pest destroyed. 06691_ R-06 Scavenger collects Lgt. Ion Engine. 06691_ G-47 Trooper destroyed. 06695_ R-06 Scavenger collects Flight Unit. 06697_ U-05 Engineer lays Concrete. 06697_ G-47 Trooper destroyed. 06701_ R-06 Scavenger collects Aluminum Leg. Map ----- +----------------------------------------------------+ | # #??????????????????????????????# %+ """ | | # % #??????????????#####???????????# # "" | | + ] ########???????# ############# # | | # # "T" #???????# ## * = !## *!# | | # # ######### ## ## !# | | "# #""" + + ## ! ## # | | "# % %#""" ######### ## """ ## ##### | | "#####+##+#""" #???????# ## """ """ ##! =## | | % + #???????# ## "Y """ ##% !## | | #######################+### """ ## ## | | ## % + % ##% ## | | ###+## % %####### #### #######+### #""" | | % ## # # = #??# #### % % #""" | | """## %# [ # !==#??# #""" | | """## #! #==!!==#??# ] # | | """## # ########??# #### #### | | / + [[ !#### ###### ###########?? | | """## # [[ + *% # "%" # #?? | | """## # [ # u! ![ # "G" + #?? | | """## ####### #% """ # #?? | | # # #???# a/[ # #?? | | ###### # ##### """ r"" # # #?? | | ????## # T # """ %"""####+#### ## """" #?? | | ##?### # # """!g*S"#??? ??# ## """" #?? | | ### # # """ # [%=#???""??# ## """"?#?? | | + + """ #########@#???R ??# ##########?#?? | | ### ### # " #???????# #???????# #????????????? | | ## # # # #???????# #???????# ?????????????? | | ### # # #???????# #???????# ?????????????? | | #?# ## #######???????# #???????# ?????????????? | | #?####?# #?????????????# #???????# ?????????????? | | #??????# #?????????????# #???????? ?????????????? | | #??????# #???#######???# #???????? ?????????????? | | ######### ##### ##??# #??????????????????????? | | ????????? ??????????? #?????????? | | ????????? ??????????? #?????????? | | ?????????? ??????????? #?????????? | | ??????????#???????????########+### #?????????? | | ???????????????????????????# # #####?????????? | | ??????????????????????###### # #??????????#??? | | ?????????????????????? ## # #??????????#??? | | ?????????????????????? ## " # #??????????#??? | | ?????????????????????? """## T # #??????????#??? | | ?????????????????????? """## " # #??????????#??? | | ?????????????????????? """## # #??????????#??? | | ?????????????????????? ######## #??????????#??? | | ??????????????????????############ ############??? | | ?????????????????????? ??? | | ?????????????????????? ??? | | ?????????????????????? ??? | +----------------------------------------------------+ Best States ------------- Heat Dissipation 31 Energy Generation 14 Energy Capacity 265 Matter Stores 300 Matter Capacity 300 Sight Range 16 Terrain Scan Density 10 Armor Coverage 150 Evasion (%) 44 Recoil Reduction 2 Item Schematics ----------------- Hcp. Storage Unit | -10/Materials | Hacked Med. Storage Unit | -10/Materials | Hacked Cmb. Airjet | -8/Materials | Scanalyzed Robot Schematics ------------------ None Fabricated ------------ Nothing Alien Tech Used ----------------- None Achievements -------------- None Challenges ------------ None Game ------ Seed FluxNodePick Manual? 0 Play Time 00:43:45 Cumulative 188.5 hours Start 2020.09.28 @ 18:49:03 End 2020.09.28 @ 20:32:09 Sessions 1 Manual Loads 0 Difficulty Rogue Special Mode None Game No. 213 Rogue 213 Adventurer 0 Explorer 0 Win Type - Total 2 Types 2/0/0/0/0/0/0/0/0 Lore% 61 Gallery% 74 Achievement% 56 Wizard Run 0 Options --------- ASCII 0 Keyboard 0 Movement Numpad Keybinds 0 Fullscreen 2 Font 24/Smallcaps Map View 76x50 Tactical HUD 1 Map Filters NONE Filters NONE Steam 1 RUN: 59148da6-f4b4-4bc9-9dd6-ed961ace0201